fUST/lending_fUST_20250623
["ID","MTS","AMOUNT","RATE_DAILY","PERIOD"]
[367102247,1750659160091,-200.0,0.00026718,120]
[367102248,1750659160118,-5000.0,0.00026786,11]
[367102249,1750659160143,-5000.0,0.00026786,12]
[367102250,1750659160169,-5000.0,0.00026786,12]
[367102251,1750659160197,-200.0,0.00026836,120]
[367102252,1750659160236,-5000.0,0.00026926,14]
[367102253,1750659160264,-1112.0819,0.00027,120]
[367102254,1750659160291,-500.0,0.00027,30]
[367102255,1750659160316,-500.0,0.00027,30]
[367102256,1750659160342,-1100.0,0.00027,30]
[367102257,1750659160367,-500.0,0.00027,30]
[367102258,1750659160392,-1100.0,0.00027,30]
[367102259,1750659160417,-500.0,0.00027,30]
[367102260,1750659160443,-1100.0,0.00027,30]
[367102261,1750659160469,-500.0,0.00027,30]
[367102262,1750659160495,-1100.0,0.00027,30]
[367102263,1750659160521,-504.42048261,0.00027,30]
[367102264,1750659160547,-1100.0,0.00027,30]
[367102265,1750659160572,-1100.0,0.00027,30]
[367102266,1750659160597,-1100.0,0.00027,30]
[367102267,1750659160623,-1100.0,0.00027,30]
[367102268,1750659160650,-1100.0,0.00027,30]
[367102269,1750659160678,-500.0,0.00027,30]
[367102270,1750659160706,-500.0,0.00027,30]
[367102271,1750659160735,-1100.0,0.00027,30]
[367102272,1750659160763,-1100.0,0.00027,30]
[367102273,1750659160790,-500.0,0.00027,30]
[367102274,1750659160814,-500.0,0.00027,30]
[367102275,1750659160839,-1100.0,0.00027,30]
[367102276,1750659160865,-500.0,0.00027,30]
[367102277,1750659160891,-1100.0,0.00027,30]
[367102278,1750659160915,-500.0,0.00027,30]
[367102279,1750659160940,-1614.86384002,0.00027,30]
[367102280,1750659160964,-500.0,0.00027,30]
[367102281,1750659160989,-509.71080612,0.00027,30]
[367102282,1750659161015,-500.0,0.00027,30]
[367102283,1750659161040,-500.59879245,0.00027,30]
[367102284,1750659161064,-500.0,0.00027,30]
[367102285,1750659161088,-582.13383437,0.00027,30]
[367102286,1750659161113,-213.63163053,0.00027,120]
[367102287,1750659161138,-12553.69357174,0.00027,30]
[367102288,1750659161163,-524.09497732,0.00027,30]
[367102289,1750659161187,-230.18214666,0.00027,30]
[367102290,1750659161213,-160.0,0.00027,30]
[367102291,1750659161241,-836.70095952,0.00027,30]
[367102292,1750659161269,-160.0,0.00027,30]
[367102293,1750659161296,-425.08510397,0.00027,30]
[367102294,1750659161322,-5000.0,0.00027024,11]
[367102295,1750659161350,-5000.0,0.00027024,12]
[367102296,1750659161375,-5000.0,0.00027024,10]
[367102297,1750659161400,-5000.0,0.00027024,14]
[367102298,1750659161427,-5000.0,0.00027024,11]
[367102299,1750659161453,-5869.43378977,0.00027104,12]
[367102300,1750659161490,-200.0,0.00027389,120]
[367102301,1750659161524,-408.48398267,0.00027397,120]
[367102302,1750659161552,-204.9712167,0.00027397,120]
[367102303,1750659161579,-822.74056239,0.000275,30]
[367102304,1750659161605,-500.0,0.00027579,24]
[367102305,1750659161632,-1100.0,0.00027658,30]
[367102306,1750659161658,-1100.0,0.00027658,30]
[367102307,1750659161683,-1100.0,0.00027658,30]
[367102308,1750659161708,-1100.0,0.00027658,30]
[367102309,1750659161734,-1100.0,0.00027658,30]
[367102310,1750659161759,-1100.0,0.00027658,30]
[367102311,1750659161784,-1100.0,0.00027658,30]
[367102312,1750659161808,-500.0,0.00027658,30]
[367102313,1750659161833,-500.0,0.00027658,30]
[367102314,1750659161861,-1100.0,0.00027658,30]
[367102315,1750659161888,-1100.0,0.00027658,30]
[367102316,1750659161914,-500.0,0.00027658,30]
[367102317,1750659161941,-1100.0,0.00027658,30]
[367102318,1750659161969,-500.0,0.00027658,30]
[367102319,1750659161996,-1100.0,0.00027658,30]
[367102320,1750659162022,-500.0,0.00027658,30]
[367102321,1750659162050,-1100.0,0.00027658,30]
[367102322,1750659162075,-500.0,0.00027658,30]
[367102323,1750659162100,-1100.0,0.00027658,30]
[367102324,1750659162125,-1100.0,0.00027658,30]
[367102325,1750659162150,-1100.0,0.00027658,30]
[367102326,1750659162175,-190.0,0.00027658,30]
[367102327,1750659162199,-500.0,0.00027658,30]
[367102328,1750659162223,-500.0,0.00027658,30]
[367102329,1750659162248,-500.0,0.00027658,30]
[367102330,1750659162273,-500.0,0.00027658,30]
[367102331,1750659162301,-500.0,0.00027658,30]
[367102332,1750659162326,-500.0,0.00027658,30]
[367102333,1750659162351,-500.0,0.00027658,30]
[367102334,1750659162377,-500.0,0.00027658,30]
[367102335,1750659162402,-293.85068442,0.00027658,30]
[367102336,1750659162428,-500.36684427,0.00027658,30]
[367102337,1750659162454,-500.0,0.00027658,30]
[367102338,1750659162479,-500.0,0.00027658,30]
[367102339,1750659162506,-500.0,0.00027658,30]
[367102340,1750659162648,-500.0,0.00027658,30]
[367102341,1750659162721,-206.0,0.000277,30]
[367102342,1750659162748,-200.0,0.0002772,19]
[367102343,1750659162778,-500.0,0.00027779,19]
[367102344,1750659162816,-200.0,0.00027959,120]
[367102345,1750659162843,-500.0,0.00027979,19]
[367102346,1750659162871,-2000.0,0.00028,120]
[367102347,1750659162898,-200.0,0.00028,30]
[367102348,1750659162926,-200.0,0.00028117,120]
[367102349,1750659162953,-500.0,0.00028179,16]
[367102350,1750659162989,-200.0,0.00028327,120]
[367102351,1750659163015,-500.0,0.00028379,26]
[367102352,1750659163042,-1112.0819,0.000284,120]
[367102353,1750659163070,-200.0,0.0002846,120]
[367102354,1750659163096,-200.0,0.00028498,120]
[367102355,1750659163126,-500.0,0.00028579,29]
[367102356,1750659163152,-167.0,0.00028767,14]
[367102357,1750659163178,-500.0,0.00028779,19]
[367102358,1750659163211,-1729.76,0.000288,31]
[367102359,1750659163241,-1729.76,0.000288,31]
[367102360,1750659163271,-1729.76,0.000288,31]
[367102361,1750659163305,-1729.76,0.000288,31]
[367102362,1750659163335,-1729.76,0.000288,31]
[367102363,1750659163366,-1729.76,0.000288,31]
[367102364,1750659163396,-1729.76,0.000288,31]
[367102365,1750659163426,-1729.76,0.000288,31]
[367102366,1750659163455,-1729.76,0.000288,31]
[367102367,1750659163485,-1729.76,0.000288,31]
[367102368,1750659163514,-1729.76,0.000288,31]
[367102369,1750659163545,-1729.76,0.000288,31]
[367102370,1750659163575,-1729.76,0.000288,31]
[367102371,1750659163605,-1729.76,0.000288,31]
[367102372,1750659163635,-1729.76,0.000288,31]
[367102373,1750659163666,-1729.76,0.000288,31]
[367102374,1750659163696,-1729.76,0.000288,31]
[367102375,1750659163726,-1729.76,0.000288,31]
[367102376,1750659163756,-1729.76,0.000288,31]
[367102377,1750659163787,-1729.76,0.000288,31]
[367102378,1750659163816,-1729.76,0.000288,31]
[367102379,1750659163846,-1729.76,0.000288,31]
[367102380,1750659163876,-1729.76,0.000288,31]
[367102381,1750659163906,-1729.76,0.000288,31]
[367102382,1750659163932,-206.0,0.0002889,30]
[367102383,1750659163960,-200.0,0.00028911,120]
[367102384,1750659163984,-500.0,0.00028979,15]
[367102385,1750659164010,-209.72002,0.00029,120]
[367102386,1750659164036,-2014.76365106,0.00029,10]
[367102387,1750659164061,-425.08510397,0.00029,10]
[367102388,1750659164086,-1333.0,0.00029041,120]
[367102389,1750659164112,-200.0,0.00029165,120]
[367102390,1750659164138,-500.0,0.00029379,25]
[367102391,1750659164162,-200.0,0.0002942,24]
[367102392,1750659164187,-500.0,0.00029579,11]
[367102393,1750659164212,-200.0,0.00029581,120]
[367102394,1750659164239,-187206.12203082,0.00029677,20]
[367102395,1750659164266,-500.0,0.00029779,29]
[367102396,1750659164294,-1112.0819,0.000298,120]
[367102397,1750659164322,-500.0,0.00029979,15]
[367102398,1750659164351,-200.0,0.0003,120]
[367102399,1750659164378,-479.969999,0.0003,30]
[367102400,1750659164405,-401.83202303,0.0003,10]
[367102401,1750659164430,-1560.20488735,0.0003,10]
[367102402,1750659164457,-2000.0,0.0003,120]
[367102403,1750659164483,-160.0,0.0003,10]
[367102404,1750659164509,-389075.32435004,0.0003,30]
[367102405,1750659164536,-1000.0,0.0003,120]
[367102406,1750659164563,-846.53928378,0.0003,10]
[367102407,1750659164591,-12553.69357174,0.0003,120]
[367102408,1750659164617,-12553.69357174,0.0003,10]
[367102409,1750659164643,-524.09497732,0.0003,120]
[367102410,1750659164668,-524.09497732,0.0003,10]
[367102411,1750659164694,-230.18214666,0.0003,10]
[367102412,1750659164719,-160.0,0.0003,10]
[367102413,1750659164744,-836.70095952,0.0003,10]
[367102414,1750659164769,-160.0,0.0003,10]
[367102415,1750659164794,-513.0,0.0003,14]
[367102416,1750659164818,-206.0,0.0003008,30]
[367102417,1750659164844,-500.0,0.00030179,10]
[367102418,1750659164872,-200.0,0.00030201,120]
[367102419,1750659164898,-500.0,0.00030379,29]
[367102420,1750659164923,-513.0,0.00030411,14]
[367102421,1750659164948,-200.0,0.00030484,120]
[367102422,1750659164973,-500.0,0.00030579,15]
[367102423,1750659164998,-500.0,0.00030779,26]
[367102424,1750659165027,-500.0,0.00030979,21]
[367102425,1750659165053,-160.0,0.00031,120]
[367102426,1750659165078,-160.0,0.00031,120]
[367102427,1750659165108,-1729.76,0.00031,31]
[367102428,1750659165137,-1729.76,0.00031,31]
[367102429,1750659165165,-1729.76,0.00031,31]
[367102430,1750659165193,-1729.76,0.00031,31]
[367102431,1750659165222,-175.3450499,0.00031,31]
[367102432,1750659173992,-1554.4149501,0.00031,31]
[367102433,1750659174025,-1729.76,0.00031,31]
[367102434,1750659174260,-1729.76,0.00031,31]
[367102435,1750659174294,-1729.76,0.00031,31]
[367102436,1750659174325,-1729.76,0.00031,31]
[367102437,1750659174355,-1729.76,0.00031,31]
[367102438,1750659174384,-1729.76,0.00031,31]
[367102439,1750659174413,-1729.76,0.00031,31]
[367102440,1750659174442,-1729.76,0.00031,31]
[367102441,1750659174471,-1729.76,0.00031,31]
[367102442,1750659174502,-1729.76,0.00031,31]
[367102443,1750659174533,-1729.76,0.00031,31]
[367102444,1750659174562,-1729.76,0.00031,31]
[367102445,1750659174593,-1729.76,0.00031,31]
[367102446,1750659174624,-1729.76,0.00031,31]
[367102447,1750659174654,-1729.76,0.00031,31]
[367102448,1750659174685,-1729.76,0.00031,31]
[367102449,1750659174715,-1729.76,0.00031,31]
[367102450,1750659174745,-1729.76,0.00031,31]
[367102451,1750659174775,-1729.76,0.00031,31]
[367102452,1750659174802,-230.18214666,0.00031,120]
[367102453,1750659174828,-160.0,0.00031,120]
[367102454,1750659174854,-836.70095952,0.00031,120]
[367102455,1750659174885,-160.0,0.00031,120]
[367102456,1750659174911,-425.08510397,0.00031,120]
[367102457,1750659174937,-200.0,0.00031152,120]
[367102458,1750659174963,-200.0,0.00031157,120]
[367102459,1750659174988,-1112.0819,0.000312,120]
[367102460,1750659175013,-206.0,0.0003128,30]
[367102461,1750659175038,-200.0,0.00031484,120]
[367102462,1750659175065,-200.0,0.00031484,120]
[367102463,1750659175093,-200.0,0.00031484,120]
[367102464,1750659175121,-201.18649104,0.00031484,120]
[367102465,1750659175149,-200.0,0.00031522,120]
[367102466,1750659175174,-200.0,0.00031522,120]
[367102467,1750659175199,-200.0,0.00031522,120]
[367102468,1750659175224,-200.0,0.00031522,120]
[367102469,1750659175250,-365.8891638,0.0003171,30]
[367102470,1750659175276,-80000.0,0.0003185,70]
[367102471,1750659175302,-2000.0,0.00032,120]
[367102472,1750659175328,-206.0,0.0003247,30]
[367102473,1750659175354,-80000.0,0.0003248,80]
[367102474,1750659175380,-500.0,0.00032579,30]
[367102475,1750659175407,-1112.0819,0.000326,120]
[367102476,1750659175432,-923.0,0.00032603,90]
[367102477,1750659175458,-200.0,0.0003283,33]
[367102478,1750659175484,-70000.0,0.0003285,80]
[367102479,1750659175511,-60000.0,0.0003285,70]
[367102480,1750659175543,-500.0,0.00032979,89]
[367102481,1750659175568,-1000.0,0.00033,120]
[367102482,1750659175593,-1000.0,0.00033,120]
[367102483,1750659175619,-500.0,0.00033179,60]
[367102484,1750659175645,-200.0,0.00033188,120]
[367102485,1750659175678,-1729.76,0.000332,31]
[367102486,1750659175710,-1729.76,0.000332,31]
[367102487,1750659175741,-1729.76,0.000332,31]
[367102488,1750659175772,-1729.76,0.000332,31]
[367102489,1750659175804,-1729.76,0.000332,31]
[367102490,1750659175834,-1729.76,0.000332,31]
[367102491,1750659175866,-1729.76,0.000332,31]
[367102492,1750659175898,-1729.76,0.000332,31]
[367102493,1750659175929,-1729.76,0.000332,31]
[367102494,1750659175959,-1729.76,0.000332,31]
[367102495,1750659175987,-1729.76,0.000332,31]
[367102496,1750659176016,-1729.76,0.000332,31]
[367102497,1750659176046,-1729.76,0.000332,31]
[367102498,1750659176076,-1729.76,0.000332,31]
[367102499,1750659176114,-1729.76,0.000332,31]
[367102500,1750659176144,-1729.76,0.000332,31]
[367102501,1750659176175,-1729.76,0.000332,31]
[367102502,1750659176206,-1729.76,0.000332,31]
[367102503,1750659176235,-1729.76,0.000332,31]
[367102504,1750659176264,-1729.76,0.000332,31]
[367102505,1750659176294,-1729.76,0.000332,31]
[367102506,1750659176325,-1729.76,0.000332,31]
[367102507,1750659176356,-1729.76,0.000332,31]
[367102508,1750659176386,-1729.76,0.000332,31]
[367102509,1750659176412,-200.0,0.00033225,120]
[367102510,1750659176437,-518.0,0.00033226,30]
[367102511,1750659176464,-500.0,0.00033379,30]
[367102512,1750659176490,-30000.0,0.0003342,60]
[367102513,1750659176516,-200.0,0.00033496,120]
[367102514,1750659176543,-200.0,0.00033566,120]
[367102515,1750659176569,-500.0,0.00033579,45]
[367102516,1750659176596,-206.0,0.0003366,30]
[367102517,1750659176621,-500.0,0.00033779,82]
[367102518,1750659176646,-209.72002,0.000338,120]
[367102519,1750659176672,-1507.0,0.000339,120]
[367102520,1750659176699,-200.0,0.0003391,120]
[367102521,1750659176728,-1333.0,0.00033973,120]
[367102522,1750659176756,-500.0,0.00033979,36]
[367102523,1750659176784,-200.0,0.00033988,120]
[367102524,1750659176809,-1112.0819,0.00034,120]
[367102525,1750659176837,-2000.0,0.00034,120]
[367102526,1750659176867,-500.0,0.00034179,47]
[367102527,1750659176893,-500.0,0.00034185,60]
[367102528,1750659176920,-200.0,0.0003422,120]
[367102529,1750659177103,-200.0,0.0003423,120]
[367102530,1750659177131,-500.0,0.00034379,90]
[367102531,1750659177157,-212.0,0.0003453,38]
[367102532,1750659177183,-500.0,0.00034579,56]
[367102533,1750659177209,-500.0,0.00034779,36]
[367102534,1750659177235,-80000.0,0.0003482,70]
[367102535,1750659177261,-100000.0,0.0003483,80]
[367102536,1750659177287,-206.0,0.0003485,30]
[367102537,1750659177316,-500.0,0.00034979,57]
[367102538,1750659177342,-200.0,0.00035,120]
[367102539,1750659177367,-210.76281135,0.00035,30]
[367102540,1750659177395,-445.6964653,0.00035,30]
[367102541,1750659177421,-200.0,0.00035007,120]
[367102542,1750659177449,-500.0,0.00035179,55]
[367102543,1750659177475,-70000.0,0.0003528,90]
[367102544,1750659177501,-607.25354909,0.00035281,60]
[367102545,1750659177528,-500.0,0.00035379,58]
[367102546,1750659177556,-1112.0819,0.000354,120]
[367102547,1750659177587,-1729.76,0.000354,31]
[367102548,1750659177616,-1729.76,0.000354,31]
[367102549,1750659177646,-1729.76,0.000354,31]
[367102550,1750659177675,-1729.76,0.000354,31]
[367102551,1750659177706,-1729.76,0.000354,31]
[367102552,1750659177736,-1729.76,0.000354,31]
[367102553,1750659177766,-1729.76,0.000354,31]
[367102554,1750659177795,-1729.76,0.000354,31]
[367102555,1750659177825,-1729.76,0.000354,31]
[367102556,1750659177853,-1729.76,0.000354,31]
[367102557,1750659177887,-1729.76,0.000354,31]
[367102558,1750659177916,-1729.76,0.000354,31]
[367102559,1750659177949,-1729.76,0.000354,31]
[367102560,1750659177978,-1729.76,0.000354,31]
[367102561,1750659178008,-1729.76,0.000354,31]
[367102562,1750659178038,-1729.76,0.000354,31]
[367102563,1750659178064,-513.0,0.00035441,30]
[367102564,1750659178091,-500.0,0.00035579,87]
[367102565,1750659178118,-200.0,0.00035585,120]
[367102566,1750659178144,-997.54031684,0.00035616,30]
[367102567,1750659178171,-500.0,0.00035779,88]
[367102568,1750659178196,-90000.0,0.0003583,90]
[367102569,1750659178222,-500.0,0.00035979,73]
[367102570,1750659178248,-2000.0,0.00036,120]
[367102571,1750659178274,-337.0,0.00036,120]
[367102572,1750659178302,-1000.0,0.00036,120]
[367102573,1750659178329,-200.0,0.0003603,120]
[367102574,1750659178355,-206.0,0.0003605,30]
[367102575,1750659178382,-500.0,0.00036179,65]
[367102576,1750659178408,-50000.0,0.0003618,40]
[367102577,1750659178435,-168.0,0.00036247,30]
[367102578,1750659178459,-50000.0,0.0003628,60]
[367102579,1750659178487,-154.0,0.000363,120]
[367102580,1750659178513,-500.0,0.00036379,51]
[367102581,1750659178540,-153.0,0.00036456,60]
[367102582,1750659178568,-153.0,0.00036456,60]
[367102583,1750659178596,-153.0,0.00036456,60]
[367102584,1750659178624,-153.0,0.0003648,60]
[367102585,1750659178653,-153.0,0.0003648,60]
[367102586,1750659178680,-153.0,0.0003648,60]
[367102587,1750659178706,-153.0,0.00036486,60]
[367102588,1750659178733,-153.0,0.00036486,60]
[367102589,1750659178759,-153.0,0.00036486,60]
[367102590,1750659178785,-153.0,0.00036486,60]
[367102591,1750659178811,-500.0,0.00036579,62]
[367102592,1750659178839,-200.0,0.00036584,120]
[367102593,1750659178867,-50000.0,0.0003675,60]
[367102594,1750659178893,-500.0,0.00036779,88]
[367102595,1750659178920,-1507.0,0.000368,120]
[367102596,1750659178945,-1112.0819,0.000368,120]
[367102597,1750659178971,-3034.16150289,0.00036898,120]
[367102598,1750659178998,-500.0,0.00036979,57]
[367102599,1750659179023,-7000.0,0.00037,120]
[367102600,1750659179050,-200.0,0.00037011,120]
[367102601,1750659179078,-5000.0,0.00037024,58]
[367102602,1750659179104,-5000.0,0.00037024,60]
[367102603,1750659179130,-5000.0,0.00037024,57]
[367102604,1750659179156,-5000.0,0.00037024,57]
[367102605,1750659179180,-5000.0,0.00037024,58]
[367102606,1750659179206,-500.0,0.00037179,62]
[367102607,1750659179231,-200.0,0.00037215,120]
[367102608,1750659179256,-206.0,0.0003724,30]
[367102609,1750659179281,-500.0,0.00037379,48]
[367102610,1750659179306,-500.0,0.000375,30]
[367102611,1750659179331,-500.0,0.000375,30]
[367102612,1750659179356,-3507.15701944,0.0003753,50]
[367102613,1750659183056,-846.53928378,0.00026,30]
[367102614,1750659183214,-153.0,0.00036451,60]
[367102615,1750659183246,-153.0,0.00036451,60]
[367102616,1750659183275,-153.0,0.00036451,60]
[367102617,1750659183305,-153.0,0.00036456,60]
[367102618,1750659183335,-36492.84298056,0.0003753,50]
[367102619,1750659183365,-70000.0,0.0003753,60]
[367102620,1750659183395,-200.0,0.00037544,120]
[367102621,1750659183426,-500.0,0.00037579,55]
[367102622,1750659183454,-513.0,0.00037656,30]
[367102623,1750659183484,-500.0,0.00037779,90]
[367102624,1750659183514,-200.0,0.00037781,120]
[367102625,1750659183543,-200.0,0.00037781,120]
[367102626,1750659183572,-200.0,0.00037781,120]
[367102627,1750659183602,-200.0,0.00037781,120]
[367102628,1750659183631,-200.0,0.00037827,120]
[367102629,1750659183660,-200.0,0.00037827,120]
[367102630,1750659183689,-200.0,0.00037827,120]
[367102631,1750659183718,-200.0,0.00037827,120]
[367102632,1750659183746,-513.0,0.00037973,30]
[367102633,1750659183776,-500.0,0.00037979,83]
[367102634,1750659183807,-2000.0,0.00038,120]
[367102635,1750659183836,-200.0,0.00038152,120]
[367102636,1750659183871,-200.0,0.00038152,120]
[367102637,1750659183901,-200.0,0.00038157,120]
[367102638,1750659183937,-500.0,0.00038179,81]
[367102639,1750659183966,-1112.08197,0.000382,120]
[367102640,1750659183995,-60000.0,0.0003825,40]
[367102641,1750659184023,-40000.0,0.0003825,70]
[367102642,1750659184053,-2005.81085279,0.00038356,120]
[367102643,1750659184083,-500.0,0.00038379,120]
[367102644,1750659184112,-90000.0,0.0003842,90]
[367102645,1750659184140,-206.0,0.0003843,30]
[367102646,1750659184169,-60000.0,0.0003848,70]
[367102647,1750659184197,-500.0,0.00038579,120]
[367102648,1750659184225,-209.72004,0.000386,120]
[367102649,1750659184254,-90000.0,0.0003862,90]
[367102650,1750659184282,-90000.0,0.0003862,90]
[367102651,1750659184313,-500.0,0.00038779,120]
[367102652,1750659184343,-1093.7678012,0.00038904,90]
[367102653,1750659184374,-500.0,0.00038979,120]
[367102654,1750659184403,-7026.0,0.00039,120]
[367102655,1750659184433,-1000.0,0.00039,120]
[367102656,1750659184463,-500.0,0.00039179,120]
[367102657,1750659184710,-80000.0,0.0003918,80]
[367102658,1750659184742,-200.0,0.00039272,120]
[367102659,1750659184777,-500.0,0.00039379,120]
[367102660,1750659184807,-5000.0,0.0003946,90]
[367102661,1750659184835,-80000.0,0.0003948,70]
[367102662,1750659184865,-80000.0,0.0003953,80]
[367102663,1750659184892,-500.0,0.00039579,120]
[367102664,1750659184918,-206.0,0.0003962,30]
[367102665,1750659184944,-200.0,0.00039695,120]
[367102666,1750659184972,-1507.0,0.000397,120]
[367102667,1750659185001,-500.0,0.00039779,120]
[367102668,1750659185029,-200.0,0.00039808,120]
[367102669,1750659185057,-200.0,0.00039852,120]
[367102670,1750659185082,-513.0,0.00039871,90]
[367102671,1750659185109,-200.0,0.0003992,120]
[367102672,1750659185135,-200.0,0.00039964,120]
[367102673,1750659185161,-500.0,0.00039979,120]
[367102674,1750659185186,-1000.0,0.0004,120]
[367102675,1750659185213,-2000.0,0.0004,120]
[367102676,1750659185239,-803.71021333,0.0004,30]
[367102677,1750659185265,-153.94561899,0.0004,30]
[367102678,1750659185290,-200.0,0.0004,30]
[367102679,1750659185316,-10242.73374315,0.0004,120]
[367102680,1750659185343,-36470.89052265,0.0004,120]
[367102681,1750659185370,-2000.0,0.0004,120]
[367102682,1750659185397,-160.0,0.0004,120]
[367102683,1750659185426,-12553.69357174,0.0004,120]
[367102684,1750659185454,-524.09497732,0.0004,120]
[367102685,1750659185480,-230.18214666,0.0004,120]
[367102686,1750659185508,-160.0,0.0004,120]
[367102687,1750659185536,-836.70095952,0.0004,120]
[367102688,1750659185563,-160.0,0.0004,120]
[367102689,1750659185591,-425.08510397,0.0004,120]
[367102690,1750659185617,-155.0,0.0004,120]
[367102691,1750659185644,-500.0,0.00040179,120]
[367102692,1750659185672,-500.0,0.00040379,120]
[367102693,1750659185699,-575.52855132,0.00040548,120]
[367102694,1750659185726,-500.0,0.00040579,120]
[367102695,1750659185752,-500.0,0.00040779,120]
[367102696,1750659185779,-206.0,0.0004082,30]
[367102697,1750659185806,-200.0,0.00040854,120]
[367102698,1750659185832,-200.0,0.00040922,120]
[367102699,1750659185858,-200.0,0.00040959,120]
[367102700,1750659185887,-500.0,0.00040979,120]
[367102701,1750659185914,-11703.2,0.00041095,120]
[367102702,1750659185939,-500.0,0.00041123,30]
[367102703,1750659185964,-500.0,0.00041179,120]
[367102704,1750659185990,-200.0,0.00041339,120]
[367102705,1750659186015,-5000.0,0.00041368,30]
[367102706,1750659186041,-5000.0,0.00041368,60]
[367102707,1750659186067,-500.0,0.00041379,120]
[367102708,1750659186093,-11703.2,0.00041506,120]
[367102709,1750659186120,-500.0,0.00041579,120]
[367102710,1750659186147,-200.0,0.00041621,120]
[367102711,1750659186174,-200.0,0.00041753,120]
[367102712,1750659186200,-614.09769005,0.00041779,120]
[367102713,1750659186227,-5000.0,0.000419,95]
[367102714,1750659186253,-5000.0,0.00041916,30]
[367102715,1750659186279,-5000.0,0.00041916,120]
[367102716,1750659186306,-11703.2,0.00041917,120]
[367102717,1750659186332,-1000.0,0.00042,120]
[367102718,1750659186359,-2000.0,0.00042,120]
[367102719,1750659186386,-2505.25704115,0.00042,65]
[367102720,1750659186414,-2000.0,0.00042,120]
[367102721,1750659186441,-25498.3341729,0.00042,120]
[367102722,1750659186470,-206.0,0.0004201,30]
[367102723,1750659186499,-200.0,0.00042025,120]
[367102724,1750659186526,-5000.0,0.0004219,30]
[367102725,1750659186554,-5000.0,0.000422,120]
[367102726,1750659186582,-500.0,0.0004228,60]
[367102727,1750659186608,-501.91138684,0.0004228,60]
[367102728,1750659186635,-500.0,0.0004228,60]
[367102729,1750659186662,-500.0,0.0004228,60]
[367102730,1750659186689,-500.0,0.0004228,60]
[367102731,1750659186716,-500.0,0.0004228,60]
[367102732,1750659186743,-7350.47137208,0.00042328,120]
[367102735,1750659190717,-500.0,0.0004228,60]
[367102736,1750659190747,-4352.72862792,0.00042328,120]
[367102737,1750659190773,-1759.51592329,0.000424,120]
[367102738,1750659190799,-5000.0,0.00042431,31]
[367102739,1750659190825,-191.78,0.00042464,120]
[367102740,1750659190850,-5000.0,0.00042464,120]
[367102741,1750659190880,-14010.0,0.000425,60]
[367102742,1750659190906,-5600.94989861,0.000425,120]
[367102743,1750659190932,-1507.0,0.000426,120]
[367102744,1750659190958,-200.0,0.00042635,120]
[367102745,1750659190984,-11703.2,0.00042739,120]
[367102746,1750659191008,-5000.0,0.00042876,80]
[367102747,1750659191033,-5000.0,0.000429,95]
[367102748,1750659191059,-5111.46603591,0.00043,120]